[Event "SS Manhem Chess Week 2019 Goteborg Open"]
[Site "Molnlycke kulturhus, Biblioteksgatan 2, Molnlycke, Sweden"]
[Date "2019.08.17"]
[Round "6.12"]
[White "Olsson, William"]
[Black "Ziegler, Ari"]
[Result "0-1"]
[TimeControl "15 minutes + 5 seconds per move from move one (Round 1 - 4) / 90 minutes + 30 seconds per move from move one (Round 5 - 8)"]
[BlackTitle "IM"]
[WhiteFideId "1741721"]
[BlackFideId "1700987"]
[WhiteElo "2015"]
[BlackElo "2300"]

1. Nf3 {[%clk 01:30:58]} {[%emt 00:00:02]} g6 {[%clk 01:30:55]} {[%emt
00:00:05]} 2. c4 {[%clk 01:31:18]} {[%emt 00:00:10]} Bg7 {[%clk 01:31:19]}
{[%emt 00:00:05]} 3. Nc3 {[%clk 01:31:45]} {[%emt 00:00:04]} e5 {[%clk
01:31:40]} {[%emt 00:00:08]} 4. d3 {[%clk 01:31:54]} d6 {[%clk 01:31:51]}
{[%emt 00:00:39]} 5. g3 {[%clk 01:32:19]} {[%emt 00:00:05]} Nc6 {[%clk
01:32:11]} {[%emt 00:00:10]} 6. Bg2 {[%clk 01:32:37]} {[%emt 00:00:13]} f5
{[%clk 01:30:58]} {[%emt 00:01:42]} 7. O-O {[%clk 01:32:03]} {[%emt 00:01:04]}
Nf6 {[%clk 01:31:10]} {[%emt 00:00:17]} 8. Rb1 {[%clk 01:30:51]} {[%emt
00:01:43]} a5 {[%clk 01:31:32]} {[%emt 00:00:09]} 9. a3 {[%clk 01:31:15]}
{[%emt 00:00:06]} O-O {[%clk 01:31:52]} {[%emt 00:00:08]} 10. Ne1 {[%clk
01:28:24]} {[%emt 00:03:22]} h6 {[%clk 01:31:43]} {[%emt 00:00:39]} 11. b4
{[%clk 01:27:31]} {[%emt 00:01:24]} axb4 {[%clk 01:32:06]} {[%emt 00:00:07]} 12.
axb4 {[%clk 01:27:56]} {[%emt 00:00:04]} g5 {[%clk 01:32:00]} {[%emt 00:00:35]}
13. Bd2 {[%clk 01:20:44]} {[%emt 00:07:43]} f4 {[%clk 01:29:06]} {[%emt
00:03:24]} 14. Nc2 {[%clk 01:17:47]} {[%emt 00:03:27]} Qe8 {[%clk 01:26:34]}
{[%emt 00:03:01]} 15. Nd5 {[%clk 01:15:12]} {[%emt 00:03:07]} Nxd5 {[%clk
01:25:45]} {[%emt 00:01:18]} 16. Bxd5+ {[%clk 01:14:13]} {[%emt 00:01:30]} Be6
{[%clk 01:25:59]} {[%emt 00:00:15]} 17. Bg2 {[%clk 01:14:31]} {[%emt 00:00:13]}
Qh5 {[%clk 01:24:40]} {[%emt 00:01:49]} 18. Re1 {[%clk 01:07:36]} {[%emt
00:07:26]} fxg3 {[%clk 01:21:06]} {[%emt 00:04:03]} 19. fxg3 {[%clk 01:04:33]}
{[%emt 00:03:33]} e4 {[%clk 01:19:31]} {[%emt 00:02:05]} 20. Bxe4 {[%clk
00:46:53]} {[%emt 00:18:10]} Ne5 {[%clk 01:17:28]} {[%emt 00:02:33]} 21. Ne3
{[%clk 00:42:13]} {[%emt 00:05:10]} c6 {[%clk 01:04:10]} {[%emt 00:13:48]} 22.
Rf1 {[%clk 00:32:08]} {[%emt 00:10:35]} Bg4 {[%clk 01:03:31]} {[%emt 00:01:08]}
23. Re1 {[%clk 00:23:36]} {[%emt 00:09:03]} Rf2 {[%clk 01:02:29]} {[%emt
00:01:31]} 24. Kxf2 {[%clk 00:22:08]} {[%emt 00:01:59]} Qxh2+ {[%clk 01:02:50]}
{[%emt 00:00:08]} 25. Ng2 {[%clk 00:22:35]} {[%emt 00:00:04]} Rf8+ {[%clk
01:02:57]} {[%emt 00:00:22]} 26. Bf4 {[%clk 00:23:01]} {[%emt 00:00:04]} gxf4
{[%clk 01:01:20]} {[%emt 00:02:07]} 27. gxf4 {[%clk 00:23:00]} {[%emt
00:00:32]} Rxf4+ {[%clk 01:00:47]} {[%emt 00:01:03]} 28. Ke3 {[%clk 00:22:56]}
{[%emt 00:00:35]} Rxe4+ {[%clk 00:59:53]} {[%emt 00:01:24]} 29. dxe4 {[%clk
00:22:58]} {[%emt 00:00:28]} Qg3+ {[%clk 01:00:11]} {[%emt 00:00:10]} 30. Kd2
{[%clk 00:22:27]} {[%emt 00:01:02]} Nxc4+ {[%clk 01:00:34]} {[%emt 00:00:07]}
31. Kc1 {[%clk 00:22:30]} {[%emt 00:00:28]} Qa3+ {[%clk 01:00:58]} {[%emt
00:00:06]} 0-1

[Event "SS Manhem Chess Week 2019 Goteborg Open"]
[Site "Molnlycke kulturhus, Biblioteksgatan 2, Molnlycke, Sweden"]
[Date "2019.08.17"]
[Round "6.13"]
[White "Wiklund, Johan"]
[Black "Castrillon Gomez, Melissa"]
[Result "0-1"]
[TimeControl "15 minutes + 5 seconds per move from move one (Round 1 - 4) / 90 minutes + 30 seconds per move from move one (Round 5 - 8)"]
[BlackTitle "WIM"]
[WhiteFideId "1713817"]
[BlackFideId "4402413"]
[WhiteElo "1956"]
[BlackElo "2227"]

1. Nf3 {[%clk 01:08:23]} {[%emt 01:27:00]} d5 {[%clk 01:30:43]} 2. d4 {[%clk
01:08:47]} {[%emt 00:00:23]} Nf6 {[%clk 01:30:53]} 3. c4 {[%clk 01:09:05]}
{[%emt 00:00:33]} e6 {[%clk 01:31:09]} {[%emt 00:00:15]} 4. Bg5 {[%clk
01:09:19]} {[%emt 00:00:15]} h6 {[%clk 01:31:27]} {[%emt 00:00:12]} 5. Bh4
{[%clk 01:09:19]} {[%emt 00:00:29]} Bb4+ {[%clk 01:31:12]} {[%emt 00:00:46]} 6.
Nbd2 {[%clk 01:09:09]} {[%emt 00:00:41]} dxc4 {[%clk 01:30:49]} {[%emt
00:00:53]} 7. e3 {[%clk 01:07:14]} {[%emt 00:02:24]} b5 {[%clk 01:30:50]}
{[%emt 00:00:30]} 8. a4 {[%clk 01:05:33]} {[%emt 00:02:11]} c6 {[%clk
01:30:15]} {[%emt 00:01:06]} 9. Be2 {[%clk 01:05:33]} {[%emt 00:00:29]} Bb7
{[%clk 01:24:56]} {[%emt 00:05:49]} 10. O-O {[%clk 01:05:47]} {[%emt 00:00:15]}
a6 {[%clk 01:24:59]} {[%emt 00:00:28]} 11. Ne5 {[%clk 01:04:13]} {[%emt
00:02:04]} Nbd7 {[%clk 01:15:10]} {[%emt 00:10:20]} 12. f4 {[%clk 01:03:45]}
{[%emt 00:00:57]} Nxe5 {[%clk 00:46:40]} {[%emt 00:29:01]} 13. fxe5 {[%clk
01:03:30]} {[%emt 00:00:44]} Bxd2 {[%clk 00:47:03]} {[%emt 00:00:07]} 14. Qxd2
{[%clk 00:58:46]} {[%emt 00:05:14]} Ne4 {[%clk 00:47:29]} {[%emt 00:00:04]} 15.
Qe1 {[%clk 00:59:04]} {[%emt 00:00:12]} Qc7 {[%clk 00:44:29]} {[%emt 00:03:30]}
16. Bf3 {[%clk 00:59:07]} {[%emt 00:00:26]} c5 {[%clk 00:43:18]} {[%emt
00:01:42]} 17. axb5 {[%clk 00:58:27]} {[%emt 00:01:10]} axb5 {[%clk 00:43:20]}
{[%emt 00:00:28]} 18. Rxa8+ {[%clk 00:58:50]} {[%emt 00:00:07]} Bxa8 {[%clk
00:43:50]} 19. Bxe4 {[%clk 00:54:20]} {[%emt 00:04:59]} Bxe4 {[%clk 00:44:13]}
{[%emt 00:00:07]} 20. Qa1 {[%clk 00:54:09]} {[%emt 00:00:41]} O-O {[%clk
00:42:27]} {[%emt 00:02:16]} 21. Qa6 {[%clk 00:52:16]} {[%emt 00:02:24]} cxd4
{[%clk 00:42:31]} {[%emt 00:00:26]} 22. exd4 {[%clk 00:52:23]} {[%emt
00:00:22]} Bc6 {[%clk 00:42:29]} {[%emt 00:00:32]} 23. Be7 {[%clk 00:51:24]}
{[%emt 00:01:29]} Ra8 {[%clk 00:40:03]} {[%emt 00:02:57]} 24. Bd6 {[%clk
00:51:44]} {[%emt 00:00:10]} Rxa6 {[%clk 00:40:30]} {[%emt 00:00:03]} 25. Bxc7
{[%clk 00:52:01]} {[%emt 00:00:13]} Ra2 {[%clk 00:40:58]} {[%emt 00:00:02]} 26.
Rf2 {[%clk 00:52:01]} {[%emt 00:00:29]} b4 {[%clk 00:41:21]} {[%emt 00:00:08]}
27. Bd6 {[%clk 00:52:02]} {[%emt 00:00:28]} c3 {[%emt 00:00:59]} 28. bxc3
{[%emt 00:00:22]} b3 {[%emt 00:02:05]} 0-1

[Event "SS Manhem Chess Week 2019 Goteborg Open"]
[Site "Molnlycke kulturhus, Biblioteksgatan 2, Molnlycke, Sweden"]
[Date "2019.08.17"]
[Round "6.14"]
[White "Troedsson, Anton"]
[Black "Sandoval Fuquen, Janneth Katerin"]
[Result "1-0"]
[TimeControl "15 minutes + 5 seconds per move from move one (Round 1 - 4) / 90 minutes + 30 seconds per move from move one (Round 5 - 8)"]
[WhiteFideId "1746006"]
[BlackFideId "4423119"]
[WhiteElo "2045"]
[BlackElo "1653"]

1. Nf3 {[%clk 01:30:58]} {[%emt 00:00:01]} d5 {[%emt 00:00:37]} 2. b3 {[%clk
01:31:12]} {[%emt 00:00:08]} Nf6 {[%clk 01:30:24]} {[%emt 00:00:37]} 3. Bb2
{[%clk 01:31:35]} {[%emt 00:00:07]} Bf5 {[%clk 01:30:41]} {[%emt 00:00:13]} 4.
e3 {[%clk 01:29:20]} {[%emt 00:02:45]} e6 {[%clk 01:29:56]} {[%emt 00:01:16]} 5.
Be2 {[%clk 01:28:44]} {[%emt 00:01:05]} h6 {[%clk 01:29:43]} {[%emt 00:00:43]}
6. O-O {[%clk 01:28:35]} {[%emt 00:00:39]} Be7 {[%clk 01:27:48]} {[%emt
00:02:26]} 7. d4 {[%clk 01:28:52]} {[%emt 00:00:12]} O-O {[%clk 01:28:09]}
{[%emt 00:00:09]} 8. Nbd2 {[%clk 01:29:13]} {[%emt 00:00:09]} c5 {[%clk
01:26:38]} {[%emt 00:02:01]} 9. c4 {[%emt 00:00:34]} Nc6 {[%clk 01:20:03]}
{[%emt 00:06:52]} 10. cxd5 {[%clk 01:20:20]} {[%emt 00:09:31]} Qxd5 {[%emt
00:10:22]} 11. Ne5 {[%clk 01:12:00]} {[%emt 00:01:20]} cxd4 {[%clk 01:14:22]}
{[%emt 00:03:50]} 12. Nxc6 {[%clk 01:12:19]} {[%emt 00:00:11]} Qxc6 {[%clk
01:14:40]} {[%emt 00:00:12]} 13. Bxd4 {[%clk 01:12:27]} {[%emt 00:00:22]} Rfd8
{[%clk 01:10:55]} {[%emt 00:04:15]} 14. Rc1 {[%clk 01:08:48]} {[%emt 00:04:09]}
Qd7 {[%clk 01:09:02]} {[%emt 00:02:24]} 15. Nc4 {[%clk 01:08:56]} {[%emt
00:00:22]} Ne4 {[%clk 00:44:49]} {[%emt 00:24:43]} 16. Ne5 {[%clk 01:05:42]}
{[%emt 00:03:43]} Qd6 {[%clk 00:42:40]} {[%emt 00:02:40]} 17. Bh5 {[%clk
01:05:04]} {[%emt 00:01:07]} Rf8 {[%clk 00:38:04]} {[%emt 00:05:07]} 18. Qe2
{[%clk 01:02:14]} {[%emt 00:03:20]} Bf6 {[%clk 00:37:07]} {[%emt 00:01:27]} 19.
Qb2 {[%clk 00:59:08]} {[%emt 00:03:36]} Qe7 {[%clk 00:29:33]} {[%emt 00:08:04]}
20. f4 {[%clk 00:51:12]} {[%emt 00:08:26]} Bxe5 {[%clk 00:26:58]} {[%emt
00:03:06]} 21. Bxe5 {[%clk 00:51:33]} {[%emt 00:00:09]} f6 {[%clk 00:27:13]}
{[%emt 00:00:15]} 22. Rc7 {[%clk 00:47:56]} {[%emt 00:04:06]} Qd8 {[%clk
00:27:20]} {[%emt 00:00:23]} 23. Rd1 {[%clk 00:48:13]} {[%emt 00:00:13]} Qxd1+
{[%clk 00:24:17]} {[%emt 00:03:34]} 24. Bxd1 {[%clk 00:48:30]} {[%emt
00:00:12]} fxe5 {[%clk 00:24:43]} {[%emt 00:00:04]} 25. Qxe5 {[%clk 00:48:49]}
{[%emt 00:00:11]} Nf6 {[%clk 00:24:49]} {[%emt 00:00:24]} 26. Bf3 {[%clk
00:47:43]} {[%emt 00:01:35]} 1-0

[Event "SS Manhem Chess Week 2019 Goteborg Open"]
[Site "Molnlycke kulturhus, Biblioteksgatan 2, Molnlycke, Sweden"]
[Date "2019.08.17"]
[Round "6.15"]
[White "Sorensen, Bent"]
[Black "Eriksson, Kristian"]
[Result "1-0"]
[TimeControl "15 minutes + 5 seconds per move from move one (Round 1 - 4) / 90 minutes + 30 seconds per move from move one (Round 5 - 8)"]
[WhiteTitle "IM"]
[WhiteFideId "1400410"]
[BlackFideId "1705172"]
[WhiteElo "2042"]
[BlackElo "2113"]

1. Nf3 {[%clk 01:30:54]} {[%emt 00:00:05]} e6 {[%clk 01:30:34]} {[%emt
00:00:27]} 2. g3 {[%clk 01:30:37]} {[%emt 00:00:47]} f5 {[%clk 01:30:10]}
{[%emt 00:00:53]} 3. b3 {[%clk 01:30:05]} {[%emt 00:01:03]} Nf6 {[%clk
01:30:19]} {[%emt 00:00:20]} 4. Bb2 {[%clk 01:30:20]} {[%emt 00:00:16]} Be7
{[%clk 01:30:03]} {[%emt 00:00:46]} 5. Bg2 {[%clk 01:30:45]} {[%emt 00:00:05]}
O-O {[%clk 01:30:19]} {[%emt 00:00:13]} 6. O-O {[%clk 01:31:10]} {[%emt
00:00:05]} d6 {[%clk 01:30:22]} {[%emt 00:00:28]} 7. d4 {[%clk 01:30:31]}
{[%emt 00:01:08]} Qe8 {[%clk 01:28:40]} {[%emt 00:02:12]} 8. Nbd2 {[%clk
01:28:55]} {[%emt 00:02:06]} Nc6 {[%clk 01:24:12]} {[%emt 00:04:57]} 9. c4
{[%clk 01:27:19]} {[%emt 00:02:06]} a5 {[%clk 01:24:19]} {[%emt 00:00:24]} 10.
a3 {[%clk 01:24:04]} {[%emt 00:03:45]} Bd7 {[%clk 01:21:08]} {[%emt 00:03:41]}
11. Qc2 {[%clk 01:21:15]} {[%emt 00:03:19]} Qh5 {[%clk 01:14:49]} {[%emt
00:06:49]} 12. Rfe1 {[%clk 01:17:39]} {[%emt 00:04:06]} Rae8 {[%emt 00:04:31]}
13. Bc3 {[%clk 01:13:59]} {[%emt 00:04:02]} g5 {[%clk 00:57:35]} {[%emt
00:13:51]} 14. Red1 {[%clk 01:03:41]} {[%emt 00:10:49]} Bd8 {[%clk 00:41:43]}
{[%emt 00:16:21]} 15. b4 {[%clk 01:00:25]} {[%emt 00:03:48]} axb4 {[%clk
00:40:44]} {[%emt 00:01:29]} 16. axb4 {[%clk 01:00:44]} {[%emt 00:00:11]} g4
{[%clk 00:38:53]} {[%emt 00:02:21]} 17. Ne1 {[%clk 01:00:04]} {[%emt 00:01:09]}
d5 {[%clk 00:32:36]} {[%emt 00:06:48]} 18. Nd3 {[%clk 00:58:01]} {[%emt
00:02:33]} Ne4 {[%clk 00:29:29]} {[%emt 00:03:37]} 19. Nf4 {[%clk 00:56:02]}
{[%emt 00:02:29]} Qf7 {[%clk 00:29:10]} {[%emt 00:00:49]} 20. b5 {[%clk
00:52:49]} {[%emt 00:03:44]} Ne7 {[%clk 00:28:05]} {[%emt 00:01:34]} 21. Bb4
{[%clk 00:50:05]} {[%emt 00:03:15]} c6 {[%clk 00:26:36]} {[%emt 00:01:59]} 22.
Nd3 {[%clk 00:47:34]} {[%emt 00:03:01]} Bc7 {[%clk 00:20:16]} {[%emt 00:06:50]}
23. Ra7 {[%clk 00:39:55]} {[%emt 00:08:09]} Rb8 {[%clk 00:18:14]} {[%emt
00:02:32]} 24. e3 {[%clk 00:34:05]} {[%emt 00:06:19]} Rfe8 {[%clk 00:16:30]}
{[%emt 00:02:14]} 25. Nb3 {[%clk 00:31:29]} {[%emt 00:03:07]} Nc8 {[%clk
00:14:17]} {[%emt 00:02:42]} 26. Raa1 {[%clk 00:30:05]} {[%emt 00:01:54]} dxc4
{[%clk 00:14:05]} {[%emt 00:00:42]} 27. Qxc4 {[%clk 00:29:37]} {[%emt
00:00:58]} Ned6 {[%clk 00:14:18]} {[%emt 00:00:17]} 28. Qc1 {[%clk 00:28:44]}
{[%emt 00:01:23]} Nxb5 {[%clk 00:14:15]} {[%emt 00:00:33]} 29. Nbc5 {[%clk
00:28:23]} {[%emt 00:00:50]} Nb6 {[%clk 00:12:34]} {[%emt 00:02:10]} 30. Ba5
{[%clk 00:26:14]} {[%emt 00:02:39]} Bc8 {[%clk 00:11:26]} {[%emt 00:01:38]} 31.
Bf1 {[%clk 00:23:00]} {[%emt 00:03:45]} Qg7 {[%clk 00:09:59]} {[%emt 00:01:56]}
32. Bxb6 {[%clk 00:21:03]} {[%emt 00:02:29]} Bxb6 {[%clk 00:10:25]} {[%emt
00:00:04]} 33. Ne5 {[%clk 00:21:13]} {[%emt 00:00:19]} Nd6 {[%clk 00:07:45]}
{[%emt 00:03:11]} 34. Qb2 {[%clk 00:19:51]} {[%emt 00:01:52]} Qc7 {[%clk
00:06:07]} {[%emt 00:02:08]} 35. Rab1 {[%clk 00:18:01]} {[%emt 00:02:20]} Bxc5
{[%clk 00:06:21]} {[%emt 00:00:16]} 36. dxc5 {[%clk 00:18:22]} {[%emt
00:00:09]} Ne4 {[%clk 00:05:08]} {[%emt 00:01:42]} 37. Bg2 {[%clk 00:15:55]}
{[%emt 00:02:57]} Nxc5 {[%clk 00:04:08]} {[%emt 00:01:31]} 38. Nxc6 {[%clk
00:12:46]} {[%emt 00:03:38]} Ra8 {[%clk 00:04:24]} {[%emt 00:00:15]} 39. Nd4
{[%clk 00:12:46]} {[%emt 00:00:30]} Na4 {[%clk 00:03:08]} {[%emt 00:01:46]} 40.
Qb4 {[%clk 00:10:20]} {[%emt 00:02:55]} Qc5 {[%clk 00:02:41]} {[%emt 00:00:57]}
41. Rdc1 {[%clk 00:09:29]} {[%emt 00:01:20]} Qxb4 {[%clk 00:02:22]} {[%emt
00:00:50]} 42. Rxb4 {[%clk 00:09:52]} {[%emt 00:00:07]} e5 {[%clk 00:02:18]}
{[%emt 00:00:34]} 43. Nb5 {[%clk 00:08:43]} {[%emt 00:01:38]} Bd7 {[%clk
00:01:14]} {[%emt 00:01:35]} 44. Nc7 {[%clk 00:08:10]} {[%emt 00:01:03]} Rec8
{[%clk 00:01:14]} {[%emt 00:00:29]} 45. Bxb7 {[%clk 00:07:37]} {[%emt
00:01:04]} 1-0

[Event "SS Manhem Chess Week 2019 Goteborg Open"]
[Site "Molnlycke kulturhus, Biblioteksgatan 2, Molnlycke, Sweden"]
[Date "2019.08.17"]
[Round "6.16"]
[White "Johansson-Ohman, Daniel"]
[Black "Malmstig, Erik"]
[Result "0-1"]
[TimeControl "15 minutes + 5 seconds per move from move one (Round 1 - 4) / 90 minutes + 30 seconds per move from move one (Round 5 - 8)"]
[BlackTitle "FM"]
[WhiteFideId "1736361"]
[BlackFideId "1702866"]
[WhiteElo "1822"]
[BlackElo "2335"]

1. c4 {[%clk 01:30:51]} {[%emt 00:00:08]} e5 {[%clk 01:30:46]} {[%emt
00:00:10]} 2. g3 {[%clk 01:30:58]} {[%emt 00:00:28]} d6 {[%clk 01:30:45]}
{[%emt 00:00:31]} 3. Bg2 {[%clk 01:30:25]} {[%emt 00:01:02]} c6 {[%clk
01:31:04]} {[%emt 00:00:11]} 4. Nc3 {[%clk 01:23:39]} {[%emt 00:07:16]} Be7
{[%clk 01:31:23]} {[%emt 00:00:11]} 5. d3 {[%clk 01:21:41]} {[%emt 00:02:28]}
h5 {[%clk 01:31:21]} {[%emt 00:00:32]} 6. Nf3 {[%clk 01:20:08]} {[%emt
00:02:02]} h4 {[%clk 01:31:40]} {[%emt 00:00:12]} 7. b4 {[%clk 01:18:29]}
{[%emt 00:02:09]} h3 {[%clk 01:30:05]} {[%emt 00:02:05]} 8. Bf1 {[%clk
01:18:44]} {[%emt 00:00:16]} Bg4 {[%clk 01:27:59]} {[%emt 00:02:35]} 9. Rb1
{[%clk 01:13:30]} {[%emt 00:05:45]} Nd7 {[%clk 01:26:03]} {[%emt 00:02:25]} 10.
e4 {[%emt 00:01:13]} f5 {[%clk 01:24:23]} {[%emt 00:02:09]} 11. Be2 {[%clk
01:12:02]} {[%emt 00:01:16]} fxe4 {[%clk 01:24:05]} {[%emt 00:00:48]} 12. dxe4
{[%emt 00:01:11]} Nh6 {[%clk 01:23:28]} {[%emt 00:01:01]} 13. Be3 {[%clk
01:09:14]} {[%emt 00:02:42]} Nf7 {[%clk 01:22:49]} {[%emt 00:01:09]} 14. Nd2
{[%clk 01:07:27]} {[%emt 00:02:17]} Bxe2 {[%clk 01:22:03]} {[%emt 00:01:16]} 15.
Qxe2 {[%clk 01:06:52]} {[%emt 00:01:05]} Nf6 {[%clk 01:22:21]} {[%emt
00:00:12]} 16. O-O {[%emt 00:03:06]} Qd7 {[%clk 01:19:53]} {[%emt 00:02:50]} 17.
f3 {[%clk 00:59:36]} {[%emt 00:05:20]} g5 {[%clk 01:18:29]} {[%emt 00:01:53]}
18. b5 {[%clk 00:49:23]} {[%emt 00:10:43]} c5 {[%clk 01:17:25]} {[%emt
00:01:34]} 19. Nd5 {[%clk 00:44:04]} {[%emt 00:05:49]} Nxd5 {[%clk 01:16:32]}
{[%emt 00:01:23]} 20. cxd5 {[%clk 00:44:19]} {[%emt 00:00:15]} Rg8 {[%clk
01:13:11]} {[%emt 00:03:50]} 21. Nc4 {[%clk 00:44:03]} {[%emt 00:00:46]} Bf6
{[%clk 01:02:26]} {[%emt 00:11:16]} 22. a4 {[%clk 00:34:06]} {[%emt 00:10:27]}
Rg7 {[%clk 01:00:28]} {[%emt 00:02:27]} 23. a5 {[%clk 00:25:59]} {[%emt
00:08:38]} Be7 {[%clk 00:59:30]} {[%emt 00:01:28]} 24. Bd2 {[%clk 00:24:43]}
{[%emt 00:01:46]} g4 {[%emt 00:02:20]} 25. f4 {[%clk 00:25:00]} {[%emt
00:00:08]} O-O-O {[%clk 00:57:35]} {[%emt 00:00:40]} 26. f5 {[%clk 00:24:50]}
{[%emt 00:00:40]} Bf6 {[%clk 00:57:42]} {[%emt 00:00:23]} 27. Qd3 {[%clk
00:22:26]} {[%emt 00:02:54]} Kb8 {[%clk 00:56:20]} {[%emt 00:01:53]} 28. Qb3
{[%clk 00:20:17]} {[%emt 00:02:40]} Rh8 {[%clk 00:53:58]} {[%emt 00:02:51]} 29.
Rb2 {[%clk 00:17:11]} {[%emt 00:03:35]} Qe8 {[%clk 00:48:36]} {[%emt 00:05:52]}
30. Kf2 {[%clk 00:11:57]} {[%emt 00:05:44]} Qg8 {[%clk 00:46:00]} {[%emt
00:03:06]} 31. Ke2 {[%clk 00:10:51]} {[%emt 00:01:37]} Qh7 {[%clk 00:45:54]}
{[%emt 00:00:35]} 32. Kd1 {[%clk 00:09:56]} {[%emt 00:01:24]} Rf8 {[%clk
00:43:38]} {[%emt 00:02:46]} 33. Kc1 {[%clk 00:09:47]} {[%emt 00:00:40]} Bg5
{[%clk 00:43:38]} {[%emt 00:00:30]} 34. Kb1 {[%clk 00:08:28]} {[%emt 00:01:49]}
Bxd2 {[%clk 00:43:33]} {[%emt 00:00:35]} 35. Nxd2 {[%clk 00:08:50]} {[%emt
00:00:08]} Ng5 {[%clk 00:43:37]} {[%emt 00:00:26]} 36. Ka2 {[%clk 00:08:05]}
{[%emt 00:01:16]} b6 {[%clk 00:40:30]} {[%emt 00:03:36]} 37. Rc2 {[%clk
00:01:57]} {[%emt 00:06:37]} bxa5 {[%clk 00:36:37]} {[%emt 00:04:23]} 38. Qa4
{[%clk 00:02:21]} {[%emt 00:00:07]} Rb7 {[%clk 00:36:42]} {[%emt 00:00:25]} 39.
Qxa5 {[%clk 00:02:36]} {[%emt 00:00:15]} Qc7 {[%clk 00:36:54]} {[%emt
00:00:18]} 40. Qxc7+ {[%clk 00:01:56]} {[%emt 00:01:11]} Kxc7 {[%emt 00:00:19]}
41. Rb2 {[%clk 00:02:16]} {[%emt 00:00:03]} a6 {[%clk 00:35:13]} {[%emt
00:02:28]} 42. bxa6 {[%clk 00:02:00]} {[%emt 00:00:46]} Ra7 {[%clk 00:35:33]}
{[%emt 00:00:09]} 43. Rb7+ {[%clk 00:01:42]} {[%emt 00:00:48]} Rxb7 {[%clk
00:35:59]} {[%emt 00:00:05]} 44. axb7 {[%clk 00:02:03]} {[%emt 00:00:09]} Kxb7
{[%clk 00:36:25]} {[%emt 00:00:04]} 45. Rb1+ {[%clk 00:02:27]} {[%emt
00:00:06]} Kc7 {[%clk 00:36:06]} {[%emt 00:00:50]} 46. Rf1 {[%clk 00:01:40]}
{[%emt 00:01:16]} Nh7 {[%emt 00:02:47]} 47. Kb3 {[%clk 00:01:21]} {[%emt
00:00:16]} Nf6 {[%clk 00:34:38]} {[%emt 00:00:14]} 48. Kc3 {[%clk 00:01:20]}
{[%emt 00:00:31]} Ra8 {[%clk 00:34:38]} {[%emt 00:00:30]} 49. Re1 {[%clk
00:00:54]} {[%emt 00:00:56]} Ra3+ {[%emt 00:01:05]} 50. Kb2 {[%clk 00:01:06]}
{[%emt 00:00:16]} Rd3 {[%clk 00:32:29]} {[%emt 00:02:05]} 51. Kc2 {[%clk
00:01:12]} {[%emt 00:00:26]} Rd4 {[%clk 00:32:26]} {[%emt 00:00:32]} 52. Kc3
{[%clk 00:01:00]} {[%emt 00:00:42]} Kd7 {[%clk 00:25:36]} {[%emt 00:07:20]} 53.
Re2 {[%clk 00:01:09]} {[%emt 00:00:22]} Ke7 {[%clk 00:24:51]} {[%emt 00:01:15]}
54. Re1 {[%clk 00:01:28]} {[%emt 00:00:10]} Kf7 {[%clk 00:24:50]} {[%emt
00:00:31]} 55. Re2 {[%clk 00:01:52]} {[%emt 00:00:06]} Nh7 {[%clk 00:24:51]}
{[%emt 00:00:28]} 56. Nc4 {[%clk 00:00:49]} {[%emt 00:01:34]} Ke7 {[%clk
00:24:56]} {[%emt 00:00:25]} 57. Na5 {[%clk 00:00:41]} {[%emt 00:00:37]} Ra4
{[%clk 00:24:40]} {[%emt 00:00:46]} 58. Nc4 {[%emt 00:00:26]} Ng5 {[%clk
00:24:25]} {[%emt 00:00:36]} 59. Nd2 {[%clk 00:00:57]} {[%emt 00:00:27]} Ra1
{[%clk 00:22:56]} {[%emt 00:01:59]} 60. Kd3 {[%clk 00:00:39]} {[%emt 00:00:49]}
Ra3+ {[%clk 00:20:34]} {[%emt 00:02:51]} 61. Kc2 {[%clk 00:01:00]} {[%emt
00:00:09]} Nf3 {[%emt 00:01:01]} 62. Kb2 {[%clk 00:01:06]} {[%emt 00:00:09]}
Ra4 {[%clk 00:18:46]} {[%emt 00:02:02]} 63. Nxf3 {[%clk 00:00:31]} {[%emt
00:01:05]} gxf3 {[%clk 00:19:11]} {[%emt 00:00:06]} 64. Re3 {[%clk 00:00:41]}
{[%emt 00:00:21]} Rxe4 {[%clk 00:18:32]} {[%emt 00:01:08]} 65. Rxf3 {[%clk
00:00:34]} {[%emt 00:00:36]} Re2+ {[%clk 00:18:43]} {[%emt 00:00:19]} 66. Kc3
{[%clk 00:00:51]} {[%emt 00:00:15]} Rxh2 {[%clk 00:18:56]} {[%emt 00:00:16]} 67.
g4 {[%clk 00:01:18]} {[%emt 00:00:03]} Ra2 {[%clk 00:18:54]} {[%emt 00:00:32]}
68. Kb3 {[%clk 00:01:23]} {[%emt 00:00:25]} h2 {[%clk 00:19:12]} {[%emt
00:00:12]} 69. Rh3 {[%clk 00:01:21]} {[%emt 00:00:32]} Rg2 {[%clk 00:19:31]}
{[%emt 00:00:11]} 70. Kc3 {[%clk 00:01:15]} {[%emt 00:00:37]} Rg3+ {[%clk
00:19:52]} {[%emt 00:00:09]} 0-1